bitfinex/quotes_BTCUSD_20251117
["timestamp","ask_amount","ask_price","bid_price","bid_amount"]
[1763372402370,0.04341874,95808.0,95790.0,0.060959]
[1763372402593,0.0434628,95808.0,95807.0,0.02856]
[1763372402816,0.06301131,95808.0,95807.0,0.02856]
[1763372403058,0.00956,95791.0,95790.0,0.0004]
[1763372403283,0.41296757,95800.0,95790.0,0.0004]
[1763372403526,0.01954941,95799.0,95790.0,0.04108]
[1763372403746,0.20877673,95797.0,95790.0,0.04108]
[1763372403972,0.20878701,95792.0,95790.0,0.0004]
[1763372404179,0.41094925,95791.0,95790.0,0.0004]
[1763372404399,0.41094925,95791.0,95790.0,0.0014]
[1763372405446,0.41094925,95791.0,95790.0,0.0004]
[1763372405647,0.49466925,95791.0,95790.0,0.0004]
[1763372405884,0.47924925,95791.0,95790.0,0.0004]
[1763372406133,0.46968925,95791.0,95790.0,0.0004]
[1763372406581,0.46968925,95791.0,95790.0,0.0014]
[1763372408403,0.67847713,95791.0,95790.0,0.0014]
[1763372408639,0.71028759,95791.0,95790.0,0.0014]
[1763372408871,0.32844885,95791.0,95790.0,0.0014]
[1763372409357,0.11966097,95791.0,95790.0,0.0014]
[1763372410220,0.15105812,95791.0,95790.0,0.0014]
[1763372410873,0.359846,95791.0,95790.0,0.0014]
[1763372411088,0.15105812,95791.0,95790.0,0.0014]
[1763372411336,0.359846,95791.0,95790.0,0.0014]
[1763372411764,0.15105812,95791.0,95790.0,0.01754]
[1763372411981,0.06733812,95791.0,95790.0,0.04108]
[1763372412198,0.15105812,95791.0,95790.0,0.04108]
[1763372413071,0.10011046,95791.0,95790.0,0.04108]
[1763372413501,0.08372,95791.0,95790.0,0.04108]
[1763372421534,0.08372,95791.0,95790.0,0.01754]
[1763372421699,0.08372,95791.0,95790.0,0.0014]
[1763372427174,0.08368,95791.0,95790.0,0.0014]
[1763372428142,0.08368,95791.0,95790.0,0.04051]
[1763372428385,0.10326204,95791.0,95790.0,0.04051]
[1763372429415,0.10326204,95791.0,95790.0,0.01669]
[1763372430705,0.10326204,95791.0,95790.0,0.0014]
[1763372433623,0.08368,95791.0,95790.0,0.04051]
[1763372434030,0.0163893,95803.0,95790.0,0.04051]
[1763372434239,0.0163893,95803.0,95795.0,0.01147]
[1763372434240,0.01958961,95802.0,95795.0,0.01147]
[1763372434444,0.08368,95802.0,95796.0,0.02087769]
[1763372434596,0.08368,95802.0,95801.0,0.02676]
[1763372435004,0.08368,95802.0,95801.0,0.05058]
[1763372435205,0.08368,95802.0,95801.0,0.0714566]
[1763372435830,0.08368,95802.0,95801.0,0.1714566]
[1763372437425,0.08368,95802.0,95801.0,0.1724566]
[1763372445593,0.08368,95802.0,95801.0,0.12776]
[1763372445925,0.08368,95802.0,95801.0,0.1487]
[1763372446132,0.08368,95802.0,95801.0,0.12776]
[1763372454615,0.08368,95802.0,95801.0,0.11247]
[1763372457038,0.08368,95802.0,95801.0,0.15113]
[1763372458071,0.08368,95802.0,95801.0,0.1720066]
[1763372458270,0.08368,95802.0,95801.0,0.15113]
[1763372462097,0.10014,95802.0,95801.0,0.101]
[1763372462299,0.10014,95802.0,95801.0,0.001]
[1763372462509,0.10014,95802.0,95801.0,0.03966]
[1763372462510,0.08368,95802.0,95801.0,0.03966]
[1763372462921,0.08368,95802.0,95801.0,0.03866]
[1763372463556,0.08368,95802.0,95797.0,0.03465]
[1763372464169,0.08368,95802.0,95797.0,0.01169]
[1763372466221,0.08368,95802.0,95795.0,0.1]
[1763372466426,0.01961399,95801.0,95795.0,0.1]
[1763372466704,0.01961399,95800.0,95795.0,0.1]
[1763372466990,0.01646,95796.0,95795.0,0.1]
[1763372467200,0.01646,95796.0,95790.0,0.0004]
[1763372467405,0.02602,95791.0,95790.0,0.0004]
[1763372467624,0.04562567,95791.0,95790.0,0.0004]
[1763372467835,0.06474567,95791.0,95790.0,0.0004]
[1763372468889,0.07992062,95795.0,95790.0,0.0004]
[1763372469843,0.323,95799.0,95790.0,0.0004]
[1763372470055,0.20877727,95796.0,95790.0,0.0004]
[1763372470474,0.20878583,95792.0,95790.0,0.0004]
[1763372472493,0.20878788,95791.0,95790.0,0.0004]
[1763372474776,0.33938888,95796.0,95790.0,0.0004]
[1763372475040,0.01638888,95796.0,95790.0,0.0004]
[1763372475583,0.323,95794.0,95790.0,0.0004]
[1763372477288,0.01638888,95796.0,95790.0,0.0004]
[1763372477654,0.01638888,95796.0,95795.0,0.01633]
[1763372478054,0.10006888,95796.0,95795.0,0.03981]
[1763372480436,0.08368,95796.0,95795.0,0.03981]
[1763372480799,0.08368,95796.0,95795.0,0.04081]
[1763372482491,0.08368,95796.0,95795.0,0.06168791]
[1763372482760,0.08368,95796.0,95795.0,0.04081]
[1763372483230,0.08368,95796.0,95795.0,0.001]
[1763372483900,0.08368,95796.0,95790.0,0.0004]
[1763372484110,0.29245888,95796.0,95790.0,0.0004]
[1763372484321,0.08368,95796.0,95790.0,0.0004]
[1763372485616,0.08368,95796.0,95795.0,0.01633]
[1763372486493,0.08368,95796.0,95795.0,0.03981]
[1763372487587,0.323,95809.0,95795.0,0.06068791]
[1763372487807,0.08368,95796.0,95791.0,0.04942]
[1763372488015,0.08368,95796.0,95795.0,0.05866573]
[1763372488219,0.08368,95796.0,95795.0,0.07499573]
[1763372488441,0.08368,95796.0,95795.0,0.09847573]
[1763372489332,0.08368,95796.0,95795.0,0.19947573]
[1763372489787,0.08368,95796.0,95795.0,0.19847573]
[1763372490222,0.08368,95796.0,95795.0,0.19947573]
[1763372496173,0.08368,95796.0,95795.0,0.05247]
[1763372497015,0.08368,95796.0,95795.0,0.05147]
[1763372497225,0.08368,95796.0,95795.0,0.02799]
[1763372497424,0.08368,95796.0,95795.0,0.12799]
[1763372498136,0.08368,95796.0,95795.0,0.15147]
[1763372498345,0.08368,95796.0,95795.0,0.11166]
[1763372498500,0.08368,95796.0,95795.0,0.15147]
[1763372498702,0.08368,95796.0,95795.0,0.15247]
[1763372499227,0.08368,95796.0,95795.0,0.15147]
[1763372499615,0.08368,95796.0,95795.0,0.15247]
[1763372502859,4.406e-05,95808.0,95795.0,0.15247]
[1763372503063,0.08368,95796.0,95795.0,0.16208]
[1763372503266,0.08368,95796.0,95795.0,0.17841]
[1763372503467,4.406e-05,95808.0,95805.0,0.04942]
[1763372503672,4.406e-05,95808.0,95800.0,0.2]
[1763372503673,4.406e-05,95808.0,95807.0,0.12441573]
[1763372503870,0.08372406,95808.0,95807.0,0.12441573]
[1763372504072,0.08372406,95808.0,95807.0,0.14789573]
[1763372504695,0.08372406,95808.0,95807.0,0.24789573]
[1763372506052,0.08372406,95808.0,95807.0,0.24889573]
[1763372506451,0.08372406,95808.0,95807.0,5.24889573]
[1763372506654,0.323,95845.0,95820.0,0.2]
[1763372506927,0.00044225,95845.0,95844.0,0.02715]
[1763372507130,0.08412225,95845.0,95844.0,0.05129]
[1763372509639,0.08368,95845.0,95844.0,0.05129]
[1763372509813,0.01638261,95859.0,95844.0,0.05129]
[1763372510018,0.01952344,95858.0,95845.0,0.04500702]
[1763372510219,0.01647493,95859.0,95845.0,0.04500702]
[1763372510423,0.0195157,95858.0,95845.0,0.04500702]
[1763372510625,0.01647493,95859.0,95845.0,0.04500702]
[1763372510828,0.0195157,95858.0,95845.0,0.04500702]
[1763372511085,0.01647493,95859.0,95845.0,0.04500702]
[1763372511252,0.0195157,95858.0,95845.0,0.04500702]
[1763372511455,0.01647493,95859.0,95845.0,0.04500702]
[1763372511456,0.0195157,95857.0,95846.0,0.02414]
[1763372511652,0.01647493,95859.0,95846.0,0.02414]
[1763372511890,0.01950948,95858.0,95847.0,0.02086658]
[1763372512053,0.01647493,95859.0,95847.0,0.02086658]
[1763372512253,0.01647493,95859.0,95848.0,0.02414]
[1763372512508,0.01647493,95859.0,95849.0,0.02086615]
[1763372512709,0.01647493,95859.0,95850.0,0.02086593]
[1763372512980,0.01647493,95859.0,95851.0,0.02086571]
[1763372513355,0.01949765,95858.0,95851.0,0.02086571]
[1763372513494,0.01647493,95859.0,95851.0,0.02086571]
[1763372513697,0.01949765,95858.0,95851.0,0.02086571]
[1763372514014,0.01647493,95859.0,95851.0,0.02086571]
[1763372514216,0.01949765,95858.0,95851.0,0.02086571]
[1763372514421,0.01949765,95857.0,95851.0,0.02086571]
[1763372514622,0.01647493,95859.0,95851.0,0.02086571]
[1763372514957,0.01949465,95858.0,95851.0,0.02086571]
[1763372515104,0.01949465,95857.0,95851.0,0.02086571]
[1763372515305,0.01949289,95856.0,95852.0,0.0208655]
[1763372515562,0.01647493,95859.0,95858.0,0.02715]
[1763372515738,0.10015493,95859.0,95858.0,0.02715]
[1763372515919,0.11964743,95859.0,95858.0,0.02715]
[1763372516893,0.11964743,95859.0,95858.0,0.01187]
[1763372518377,0.11964743,95859.0,95850.0,0.02086593]
[1763372518579,0.0194925,95858.0,95850.0,0.02086593]
[1763372518785,0.0194925,95857.0,95850.0,0.02086593]
[1763372518932,0.0194925,95856.0,95850.0,0.02086593]
[1763372519285,0.0194925,95855.0,95850.0,0.02086593]
[1763372519515,0.0194925,95854.0,95850.0,0.02086593]
[1763372519719,0.10015493,95859.0,95850.0,0.02086593]
[1763372519947,0.01948454,95858.0,95850.0,0.02086593]
[1763372520113,0.01948454,95857.0,95849.0,0.11187]
[1763372520277,0.01948454,95856.0,95849.0,0.11187]
[1763372520478,0.01948454,95855.0,95849.0,0.11187]
[1763372520694,0.01948454,95854.0,95850.0,0.02086593]
[1763372520890,0.10015493,95859.0,95850.0,0.02086593]
[1763372521069,0.01948364,95858.0,95850.0,0.02086593]
[1763372521271,0.01948364,95857.0,95850.0,0.02086593]
[1763372521467,0.10015493,95859.0,95851.0,0.02414]
[1763372521468,0.01948364,95856.0,95851.0,0.02414]
[1763372521668,0.01948364,95855.0,95852.0,0.0208655]
[1763372521895,0.10015493,95859.0,95854.0,0.01528]
[1763372522142,0.01948393,95858.0,95854.0,0.01528]
[1763372522344,0.01948393,95857.0,95854.0,0.01528]
[1763372522481,0.08364,95856.0,95854.0,0.01528]
[1763372523234,0.08364,95856.0,95854.0,0.03614506]
[1763372523378,0.08364,95856.0,95854.0,0.01528]
[1763372523578,0.08364,95856.0,95849.0,0.1]
[1763372523778,0.20865936,95850.0,95849.0,9.232e-05]
[1763372524609,0.08364,95856.0,95849.0,9.232e-05]
[1763372525222,0.08364,95856.0,95849.0,0.01196232]
[1763372526360,0.08364,95855.0,95849.0,0.01196232]
[1763372528293,0.23999455,95868.0,95849.0,0.01196232]
[1763372528294,0.08364,95854.0,95849.0,0.01196232]
[1763372531417,0.08364,95854.0,95849.0,0.03610232]
[1763372532169,0.08364,95854.0,95849.0,0.01196232]
[1763372532777,0.20865465,95853.0,95849.0,9.232e-05]
[1763372533087,0.20865929,95851.0,95849.0,9.232e-05]
[1763372533304,0.20865465,95853.0,95849.0,9.232e-05]
[1763372533461,0.00978473,95852.0,95849.0,9.232e-05]
[1763372533662,0.20865936,95850.0,95849.0,9.232e-05]
[1763372533879,0.00978473,95850.0,95849.0,9.232e-05]
[1763372534086,0.20865936,95850.0,95849.0,9.232e-05]
[1763372534347,0.21844409,95850.0,95849.0,9.232e-05]
[1763372534555,0.238022,95850.0,95849.0,9.232e-05]
[1763372535615,0.02936264,95850.0,95849.0,9.232e-05]
[1763372535771,0.238022,95850.0,95849.0,9.232e-05]
[1763372536182,0.02936264,95850.0,95849.0,9.232e-05]
[1763372536591,0.02937359,95850.0,95849.0,9.232e-05]
[1763372536794,0.23803295,95850.0,95849.0,9.232e-05]
[1763372538006,0.26060252,95850.0,95849.0,9.232e-05]
[1763372538723,0.05194316,95850.0,95849.0,9.232e-05]
[1763372538939,0.02937359,95850.0,95849.0,9.232e-05]
[1763372539373,0.02937359,95850.0,95838.0,0.00734232]
[1763372539574,0.02937359,95849.0,95838.0,0.00734232]
[1763372539729,0.02937359,95848.0,95839.0,0.02464]
[1763372539934,0.02937359,95847.0,95840.0,0.02086811]
[1763372540135,0.01957791,95846.0,95840.0,0.02086811]
[1763372540393,0.01957791,95845.0,95841.0,0.02464]
[1763372540575,0.01957791,95844.0,95841.0,0.02464]
[1763372540733,0.01957791,95843.0,95841.0,0.02464]
[1763372541071,0.01957791,95842.0,95838.0,0.00734232]
[1763372541261,0.01957791,95841.0,95838.0,0.02821086]
[1763372541463,0.01957791,95840.0,95839.0,0.02086833]
[1763372541863,0.01957791,95840.0,95839.0,0.03737833]
[1763372542288,0.01957791,95840.0,95839.0,0.06201833]
[1763372544116,0.01957791,95840.0,95839.0,0.04115]
[1763372544279,0.10321791,95840.0,95839.0,0.04115]
[1763372547436,0.10321791,95840.0,95839.0,0.06201833]
[1763372547648,0.36898697,95850.0,95840.0,0.2]
[1763372547649,0.0001325,95850.0,95840.0,0.2]
[1763372547850,0.0001325,95850.0,95849.0,0.02876]
[1763372548215,0.01971912,95850.0,95849.0,0.0534]
[1763372548589,0.10335912,95850.0,95849.0,0.07426615]
[1763372548789,0.10335912,95850.0,95849.0,0.0534]
[1763372549151,0.10335912,95850.0,95849.0,0.1534]
[1763372549690,0.10335912,95850.0,95849.0,0.1554]
[1763372549829,0.10335912,95850.0,95849.0,0.13076]
[1763372550031,0.10335912,95850.0,95849.0,0.102]
[1763372550268,0.10335912,95850.0,95849.0,0.002]
[1763372550473,0.42635912,95850.0,95849.0,0.002]
[1763372551421,0.42635912,95850.0,95839.0,0.02464]
[1763372551623,0.01958662,95849.0,95839.0,0.02464]
[1763372551785,0.01958662,95848.0,95839.0,0.02464]
[1763372551952,0.01958662,95847.0,95839.0,0.02464]
[1763372552151,0.01958662,95846.0,95837.0,0.1]
[1763372552413,0.01958662,95845.0,95837.0,0.1]
[1763372552571,0.01958662,95844.0,95837.0,0.1]
[1763372552757,0.01958662,95843.0,95837.0,0.1]
[1763372552960,0.01958662,95842.0,95835.0,0.1]
[1763372553188,0.01958662,95841.0,95835.0,0.1]
[1763372553387,0.01958662,95840.0,95835.0,0.1]
[1763372553627,0.577518,95849.0,95835.0,0.1]
[1763372553835,0.01958856,95848.0,95835.0,0.1]
[1763372554286,0.01958856,95848.0,95836.0,0.02086898]
[1763372554898,0.01958856,95847.0,95836.0,0.02086898]
[1763372555103,0.01958856,95846.0,95836.0,0.02086898]
[1763372555336,0.01958856,95845.0,95836.0,0.02086898]
[1763372555563,0.01958856,95844.0,95836.0,0.02086898]
[1763372555778,0.01958856,95843.0,95836.0,0.02086898]
[1763372556075,0.77562697,95850.0,95836.0,0.02086898]
[1763372556277,0.0195882,95849.0,95836.0,0.02086898]
[1763372556435,0.0195882,95848.0,95836.0,0.02086898]
[1763372556638,0.0195882,95847.0,95836.0,0.02086898]
[1763372556860,0.77562697,95850.0,95836.0,0.02086898]
[1763372556861,0.0195882,95846.0,95836.0,0.02086898]
[1763372557043,0.0195882,95845.0,95836.0,0.02086898]
[1763372557250,0.0195882,95844.0,95836.0,0.02086898]
[1763372557444,0.77562697,95850.0,95836.0,0.02086898]
[1763372557709,0.01958876,95849.0,95836.0,0.02086898]
[1763372557913,0.01958876,95848.0,95836.0,0.02086898]
[1763372558095,0.77562697,95850.0,95836.0,0.02086898]
[1763372558096,0.01958876,95847.0,95836.0,0.02086898]
[1763372558412,0.01958876,95846.0,95836.0,0.02086898]
[1763372558637,0.01958876,95845.0,95836.0,0.02086898]
[1763372558816,0.77562697,95850.0,95836.0,0.02086898]
[1763372558967,0.01958889,95849.0,95836.0,0.02086898]
[1763372559163,0.01958889,95848.0,95836.0,0.02086898]
[1763372559410,0.77562697,95850.0,95836.0,0.02086898]
[1763372559411,0.01958889,95847.0,95836.0,0.02086898]
[1763372559582,0.01958965,95846.0,95836.0,0.02086898]
[1763372559803,0.01958965,95845.0,95836.0,0.02086898]
[1763372559967,0.01958965,95844.0,95836.0,0.02086898]
[1763372560166,0.77562697,95850.0,95837.0,0.02464]
[1763372560435,0.77562697,95850.0,95835.0,0.1]
[1763372560436,0.01959033,95849.0,95839.0,0.02464]
[1763372560651,0.01959033,95848.0,95840.0,0.01996049]
[1763372560862,0.01959033,95847.0,95840.0,0.04460049]
[1763372560996,0.77562697,95850.0,95840.0,0.04460049]
[1763372561193,0.0195896,95849.0,95840.0,0.04460049]
[1763372561437,0.0195896,95848.0,95840.0,0.04460049]
[1763372561589,0.77562697,95850.0,95840.0,0.02464]
[1763372561590,0.0195896,95847.0,95840.0,0.02464]
[1763372561791,0.0195896,95846.0,95840.0,0.02464]
[1763372562026,0.77562697,95850.0,95840.0,0.02464]
[1763372562229,0.01959061,95849.0,95840.0,0.02464]
[1763372562428,0.01959061,95848.0,95840.0,0.02464]
[1763372562659,0.77562697,95850.0,95840.0,0.02464]
[1763372562660,0.01959061,95847.0,95840.0,0.02464]
[1763372562828,0.01959061,95846.0,95840.0,0.04517114]
[1763372563034,0.77562697,95850.0,95840.0,0.04517114]
[1763372563243,0.01959152,95849.0,95845.0,0.01225]
[1763372563459,0.01959152,95848.0,95845.0,0.01225]
[1763372563656,0.4067725,95850.0,95846.0,0.07164573]
[1763372563657,0.0837725,95850.0,95846.0,0.07164573]
[1763372563995,0.0837725,95850.0,95849.0,0.01651]
[1763372564202,0.0837725,95850.0,95849.0,0.03737615]
[1763372564407,0.0837725,95850.0,95849.0,0.06201615]
[1763372564999,0.0837725,95850.0,95849.0,0.21143615]
[1763372565253,0.0837725,95850.0,95849.0,5.21243615]
[1763372565467,0.0837725,95850.0,95849.0,5.19157]
[1763372565637,0.0837725,95850.0,95849.0,5.19257]
[1763372566219,0.0837725,95850.0,95849.0,5.19157]
[1763372566835,0.0837725,95850.0,95849.0,5.19057]
[1763372567032,0.0837725,95850.0,95849.0,5.19157]
[1763372567375,0.0837725,95850.0,95849.0,5.19357]
[1763372567560,0.0837725,95850.0,95849.0,5.19057]
[1763372567702,0.0837725,95850.0,95849.0,5.19257]
[1763372567904,0.0837725,95850.0,95849.0,5.19457]
[1763372568304,0.0837725,95850.0,95849.0,0.19457]
[1763372568507,0.0837725,95850.0,95849.0,5.21543615]
[1763372568703,0.0837725,95850.0,95849.0,5.19457]
[1763372569364,0.002,95879.0,95875.0,0.04700573]
[1763372569688,0.08364,95878.0,95875.0,0.04700573]
[1763372569895,0.08364,95878.0,95877.0,0.02759]
[1763372570298,0.08364,95878.0,95877.0,0.05101]
[1763372573138,0.08364,95878.0,95877.0,0.05201]
[1763372573418,0.08364,95878.0,95877.0,0.15201]
[1763372573617,0.08364,95878.0,95877.0,0.17287006]
[1763372573779,0.08364,95878.0,95877.0,0.15201]
[1763372573981,0.08364,95878.0,95877.0,0.15301]
[1763372576375,0.08364,95878.0,95877.0,0.12959]
[1763372576827,0.08364,95878.0,95877.0,0.15301]
[1763372583408,0.08364,95878.0,95877.0,0.20243]
[1763372583831,0.08364,95878.0,95877.0,0.15301]
[1763372587061,0.08364,95878.0,95877.0,5.20243]
[1763372587279,0.08364,95878.0,95877.0,5.52543]
[1763372587722,0.08364,95878.0,95877.0,5.52443]
[1763372588023,0.0836,95878.0,95877.0,5.52443]
[1763372588238,0.00213257,95879.0,95878.0,5.09642573]
[1763372588463,0.00213257,95879.0,95878.0,5.13616573]
[1763372588891,0.00213257,95879.0,95878.0,5.45916573]
[1763372589541,0.00213257,95879.0,95878.0,5.56116573]
[1763372589762,0.00213257,95879.0,95878.0,5.56016573]
[1763372590202,0.00213257,95879.0,95878.0,5.56216573]
[1763372590861,0.0002,95900.0,95899.0,0.04942]
[1763372591085,0.00028297,95900.0,95899.0,0.07701]
[1763372591321,0.00028297,95900.0,95899.0,0.12128527]
[1763372591575,0.00028297,95900.0,95899.0,5.12128527]
[1763372591841,0.00028297,95900.0,95899.0,5.10043]
[1763372592349,0.00028297,95900.0,95899.0,5.20143]
[1763372592638,0.00028297,95900.0,95899.0,5.27977203]
[1763372592874,0.00028297,95900.0,95899.0,5.28077203]
[1763372593146,0.00028297,95900.0,95899.0,5.27977203]
[1763372593376,0.00028297,95900.0,95899.0,5.28177203]
[1763372593838,0.00028297,95900.0,95899.0,5.28277203]
[1763372594334,0.00028297,95900.0,95899.0,0.28177203]
[1763372594593,0.00028297,95900.0,95899.0,5.64919077]
[1763372595790,0.08388297,95900.0,95899.0,5.64919077]
[1763372596037,0.08388297,95900.0,95899.0,1.14965203]
[1763372596273,0.08388297,95900.0,95899.0,1.19907203]
[1763372596505,0.08388297,95900.0,95899.0,5.60577203]
[1763372597020,0.08388297,95900.0,95899.0,5.28177203]
[1763372597940,0.08388297,95900.0,95899.0,5.28077203]
[1763372598413,0.08388297,95900.0,95899.0,5.28177203]
[1763372599480,0.08388297,95900.0,95899.0,0.28177203]
[1763372599691,0.08388297,95900.0,95899.0,2.60117203]
[1763372599899,0.08388297,95900.0,95899.0,2.58147203]
[1763372600544,0.08388297,95900.0,95899.0,3.50767203]
[1763372600762,0.08388297,95900.0,95899.0,3.11367203]
[1763372600970,0.08388297,95900.0,95899.0,1.24157203]
[1763372601326,0.08388297,95900.0,95899.0,3.74627203]
[1763372602085,0.17116537,95920.0,95910.0,0.2]
[1763372602295,0.17116537,95920.0,95919.0,0.07498573]
[1763372602296,0.17124832,95920.0,95919.0,0.07498573]
[1763372602502,0.10315718,95920.0,95919.0,0.07498573]
[1763372603727,0.10315718,95920.0,95915.0,0.1]
[1763372603923,0.10315718,95920.0,95917.0,0.04700573]
[1763372603924,0.01947423,95919.0,95917.0,0.04700573]
[1763372604142,0.01947423,95918.0,95917.0,0.04700573]
[1763372604829,0.01947423,95918.0,95917.0,0.06251573]
[1763372604992,0.01947423,95918.0,95917.0,0.08519573]
[1763372606401,0.01947423,95918.0,95917.0,0.10251396]
[1763372607551,0.01947423,95918.0,95917.0,0.10704709]
[1763372607726,0.01947423,95918.0,95917.0,0.20704709]
[1763372609310,0.01947423,95918.0,95917.0,0.18619573]
[1763372610819,0.01949569,95918.0,95917.0,0.18619573]
[1763372613811,0.01949569,95918.0,95917.0,0.20520362]
[1763372614434,0.10305569,95918.0,95917.0,0.20520362]
[1763372614636,0.10305569,95918.0,95917.0,0.25462362]
[1763372614858,0.10305569,95918.0,95917.0,0.23561573]
[1763372616318,0.10310107,95918.0,95917.0,0.23561573]
[1763372616951,0.10310107,95918.0,95917.0,0.18619573]
[1763372618342,0.10310107,95918.0,95917.0,0.13919]
[1763372624534,0.10310107,95918.0,95917.0,0.11651]
[1763372624960,0.10310107,95918.0,95917.0,0.01651]
[1763372625589,0.10310107,95918.0,95917.0,0.01551]
[1763372627217,0.10310107,95918.0,95915.0,0.1]
[1763372627423,0.01954107,95917.0,95915.0,0.1]
[1763372628950,0.01954107,95917.0,95915.0,0.12391]
[1763372630310,0.08356,95918.0,95915.0,0.12391]
[1763372631488,0.08356,95918.0,95915.0,0.1]
[1763372631705,0.08356,95918.0,95915.0,0.12391]
[1763372632432,0.08356,95918.0,95917.0,0.0164]
[1763372632625,0.08356,95918.0,95917.0,0.04031]
[1763372633646,8.295e-05,95920.0,95917.0,0.04031]
[1763372633818,0.08356,95918.0,95916.0,0.04700573]
[1763372634017,0.08356,95918.0,95917.0,0.0164]
[1763372634232,8.295e-05,95920.0,95917.0,0.0164]
[1763372634451,8.295e-05,95920.0,95916.0,0.04700573]
[1763372634452,8.295e-05,95920.0,95919.0,0.0164]
[1763372634659,8.295e-05,95920.0,95919.0,0.06582]
[1763372634660,0.08364295,95920.0,95919.0,0.06582]
[1763372635055,0.08364295,95920.0,95919.0,0.08973]
[1763372635673,0.08364295,95920.0,95919.0,0.19073]
[1763372635848,0.08364295,95920.0,95919.0,0.21158092]
[1763372639185,8.295e-05,95920.0,95919.0,0.21158092]
[1763372639383,0.08364295,95920.0,95919.0,0.21158092]
[1763372644116,0.08364295,95920.0,95919.0,0.1174]
[1763372644779,0.08364295,95920.0,95919.0,0.101]
[1763372644934,0.08364295,95920.0,95919.0,0.001]
[1763372645133,0.08364295,95920.0,95919.0,0.0174]
[1763372645337,0.08364295,95920.0,95919.0,0.04131]
[1763372645551,0.08364295,95920.0,95919.0,0.0174]
[1763372646004,0.08364295,95920.0,95919.0,0.1]
[1763372646179,0.08364295,95920.0,95919.0,0.1164]
[1763372647222,0.08364295,95920.0,95919.0,0.1]
[1763372647613,0.08364295,95920.0,95915.0,0.1]
[1763372647741,0.08364295,95920.0,95919.0,0.0164]
[1763372647943,0.08364295,95920.0,95915.0,0.1]
[1763372647944,0.08364295,95920.0,95916.0,0.04476157]
[1763372648160,0.08364295,95920.0,95916.0,0.02085157]
[1763372648605,0.08364295,95920.0,95918.0,0.1]
[1763372650016,0.08364295,95920.0,95915.0,0.1]
[1763372650219,0.08364295,95920.0,95914.0,0.1]
[1763372650423,0.08364295,95920.0,95908.0,0.1]
[1763372650624,0.08364295,95920.0,95904.0,0.01247]
[1763372650625,0.08364295,95920.0,95907.0,0.1]
[1763372650829,0.45186906,95920.0,95907.0,0.1]
[1763372651617,0.45186906,95920.0,95910.0,0.1]
[1763372652020,0.08364295,95920.0,95910.0,0.1]
[1763372652229,0.45186906,95920.0,95910.0,0.1]
[1763372654434,0.45186906,95920.0,95911.0,0.01183]
[1763372654877,0.08364295,95920.0,95911.0,0.01183]
[1763372655090,0.08364295,95920.0,95911.0,0.03536]
[1763372655923,0.08364295,95920.0,95911.0,0.01183]
[1763372657114,0.61515015,95920.0,95910.0,0.1]
[1763372657286,0.61515015,95920.0,95905.0,0.1]
[1763372657287,0.40664295,95920.0,95905.0,0.1]
[1763372657514,0.36822611,95914.0,95905.0,0.1]
[1763372662927,0.36822611,95915.0,95905.0,0.1]
[1763372664436,0.20852416,95913.0,95905.0,0.1]
[1763372664901,0.36822611,95915.0,95905.0,0.1]
[1763372665109,0.36822611,95915.0,95904.0,0.1]
[1763372665110,0.20852013,95914.0,95904.0,0.1]
[1763372665310,0.57674649,95914.0,95904.0,0.1]
[1763372665508,0.36822611,95914.0,95904.0,0.1]
[1763372665864,0.20852273,95913.0,95904.0,0.1]
[1763372666040,0.57674712,95914.0,95904.0,0.1]
[1763372666243,0.36822611,95914.0,95904.0,0.1]
[1763372668337,0.45186906,95920.0,95904.0,0.1]
[1763372668524,0.34253736,95919.0,95913.0,0.01158]
[1763372668735,0.323,95919.0,95913.0,0.01158]
[1763372671543,0.45186906,95920.0,95913.0,0.01158]
[1763372671544,8.295e-05,95920.0,95913.0,0.01158]
[1763372671763,0.0836,95918.0,95913.0,0.03413]
[1763372671985,8.295e-05,95920.0,95917.0,0.01625]
[1763372672218,8.295e-05,95920.0,95919.0,0.01625]
[1763372672456,0.08368295,95920.0,95919.0,0.01625]
[1763372673676,0.08368295,95920.0,95919.0,0.0388]
[1763372675088,0.08368295,95920.0,95919.0,0.1388]
[1763372675293,0.08368295,95920.0,95919.0,0.1398]
[1763372681368,0.08368295,95920.0,95919.0,0.11725]
[1763372681793,0.08368295,95920.0,95919.0,0.14163]
[1763372690687,0.08368295,95920.0,95919.0,0.1403]
[1763372694487,8.295e-05,95920.0,95919.0,0.1403]
[1763372694717,0.08364295,95920.0,95919.0,0.1403]
[1763372696466,0.08364295,95920.0,95919.0,0.16115092]
[1763372698085,0.08364295,95920.0,95919.0,0.1403]
[1763372698579,0.08364295,95920.0,95919.0,0.16115092]
[1763372700279,0.08364295,95920.0,95919.0,0.1403]
[1763372700280,8.295e-05,95920.0,95919.0,0.1403]
[1763372700503,0.08364295,95920.0,95919.0,0.21057092]
[1763372701161,0.36594628,95940.0,95930.0,0.2]
[1763372701379,0.08356,95939.0,95920.0,0.22305]
[1763372701851,0.36822611,95930.0,95918.0,0.01178]
[1763372702258,0.36822611,95930.0,95920.0,0.2]
[1763372702912,0.36822611,95930.0,95918.0,0.01178]
[1763372703068,0.36822611,95930.0,95919.0,0.1]
[1763372703274,0.36822611,95930.0,95929.0,0.00025446]
[1763372703482,0.20847679,95934.0,95929.0,0.00025446]
[1763372703679,0.22805044,95933.0,95915.0,0.11143]
[1763372703879,0.20847679,95934.0,95915.0,0.11143]
[1763372703880,0.36822611,95930.0,95915.0,0.11143]
[1763372704291,0.36822611,95930.0,95915.0,0.13448]
[1763372704463,0.36822611,95930.0,95916.0,0.02305]
[1763372704684,0.36822611,95930.0,95916.0,0.04390157]
[1763372704827,0.36831426,95930.0,95916.0,0.04390157]
[1763372707551,0.36831426,95930.0,95917.0,0.02305]
[1763372707758,0.36831426,95930.0,95918.0,0.02085114]
[1763372708352,0.36831426,95930.0,95917.0,0.02305]
[1763372709059,0.36831426,95927.0,95915.0,0.11143]
[1763372709441,0.36831426,95927.0,95926.0,0.00033604]
[1763372709640,0.08356,95927.0,95926.0,0.00033604]
[1763372711232,0.08356,95927.0,95926.0,0.03870604]
[1763372712156,0.08356,95927.0,95926.0,0.08812604]
[1763372712672,0.08356,95927.0,95926.0,0.10897544]
[1763372712876,0.08356,95927.0,95926.0,0.03870604]
[1763372717985,0.08356,95927.0,95926.0,0.01565604]
[1763372718198,0.08356,95927.0,95926.0,0.00033604]
[1763372728748,0.08356,95927.0,95926.0,0.00173604]